bitfinex-derivatives/quotes_ETHF0:USTF0_20260204
["timestamp","ask_amount","ask_price","bid_price","bid_amount"]
[1770212005756,0.48180925,2229.0,2227.5,0.49063673]
[1770212006666,0.48180925,2229.0,2227.5,0.49393997]
[1770212006861,0.48180925,2229.0,2227.5,0.71874997]
[1770212007463,0.48180925,2229.0,2227.8,0.22477]
[1770212007660,0.48180925,2229.0,2228.0,0.49063673]
[1770212007864,0.48180925,2229.0,2228.1,0.49063673]
[1770212008668,0.48180925,2229.5,2228.4,0.22472]
[1770212008863,0.48180925,2230.0,2228.6,0.49063673]
[1770212009560,0.48180925,2230.0,2228.7,0.49063673]
[1770212009765,0.48180925,2230.0,2228.8,0.49063673]
[1770212010163,0.044,2230.2,2229.1,0.49063673]
[1770212010365,0.45,2230.4,2229.1,0.49063673]
[1770212010366,0.45,2230.4,2229.5,0.49063673]
[1770212010564,0.044,2231.4,2229.8,0.71521673]
[1770212010565,0.48180925,2231.3,2229.8,0.71521673]
[1770212010766,0.48180925,2231.3,2229.9,0.49063673]
[1770212010968,0.48180925,2231.3,2230.0,0.49063673]
[1770212011163,0.48649162,2231.3,2230.3,0.22452]
[1770212011466,0.00468237,2231.3,2230.4,0.49063673]
[1770212011674,0.48180925,2231.9,2230.6,0.49063673]
[1770212012764,0.48708194,2231.9,2230.6,0.49063673]
[1770212013269,0.48180925,2232.7,2231.3,0.49063673]
[1770212013468,0.48180925,2232.7,2230.5,4.66198866]
[1770212013469,0.48180925,2232.7,2230.9,0.49063673]
[1770212013667,0.48180925,2232.5,2230.9,0.49063673]
[1770212014074,0.48180925,2232.5,2231.2,0.49063673]
[1770212014372,0.48661543,2232.5,2231.3,0.49063673]
[1770212016870,0.00480618,2232.5,2231.6,0.49063673]
[1770212017075,0.48180925,2233.1,2231.9,0.49063673]
[1770212017968,0.48636586,2233.1,2231.9,0.49063673]
[1770212019974,0.48636586,2233.1,2231.7,0.49063673]
[1770212021078,0.48180925,2232.4,2231.6,0.00548616]
[1770212021272,0.48180925,2232.4,2231.1,0.49063673]
[1770212021580,0.48180925,2232.2,2231.1,0.49063673]
[1770212021777,0.48180925,2232.2,2230.8,0.49063673]
[1770212021975,0.22435,2232.1,2230.8,0.49063673]
[1770212022175,0.48180925,2232.0,2230.8,0.49536767]
[1770212023668,1.03223,2231.7,2230.1,0.8538]
[1770212023875,0.48180925,2231.0,2229.5,0.49063673]
[1770212024374,41.28180925,2231.0,2229.5,0.49063673]
[1770212024778,0.07255994,2230.9,2229.5,0.49456342]
[1770212025174,0.07349129,2230.5,2229.6,0.0448]
[1770212025576,0.22452,2230.4,2229.6,0.0448]
[1770212025774,0.02869129,2230.3,2229.2,0.49063673]
[1770212025970,0.0247646,2230.2,2228.9,0.4983772]
[1770212026278,0.0247646,2230.5,2228.9,0.4983772]
[1770212026674,0.0247646,2230.5,2228.9,0.50278062]
[1770212027176,0.2492746,2230.5,2228.9,0.50278062]
[1770212027378,0.02356248,2230.4,2228.9,0.50278062]
[1770212027577,0.044,2230.6,2228.9,0.50278062]
[1770212027578,0.02356248,2230.3,2228.9,0.50278062]
[1770212027973,0.02356248,2230.1,2228.9,0.50278062]
[1770212028172,0.02356248,2229.9,2228.9,0.50278062]
[1770212028472,0.02356248,2229.9,2228.3,0.49276254]
[1770212028473,0.01915906,2229.7,2228.3,0.44876254]
[1770212028678,1.033,2230.0,2228.3,0.44876254]
[1770212028679,0.01915906,2229.5,2228.4,0.50117997]
[1770212029275,0.2686,2229.6,2228.4,0.50117997]
[1770212029572,0.2686,2229.6,2228.4,0.50601578]
[1770212029573,0.044,2229.6,2228.4,0.50601578]
[1770212034783,0.044,2230.6,2228.7,0.51731809]
[1770212035083,0.044,2230.6,2228.9,0.51731809]
[1770212035678,0.044,2230.6,2229.2,0.54119617]
[1770212035880,0.044,2230.6,2229.5,0.22461]
[1770212036084,0.00344522,2231.0,2229.6,0.54119617]
[1770212037376,1.03598522,2231.0,2229.6,0.54119617]
[1770212037580,3.65363217,2231.0,2229.6,0.54119617]
[1770212038183,0.22449,2230.7,2229.6,0.54119617]
[1770212041387,0.00344522,2231.0,2229.6,0.54119617]
[1770212041587,0.00344522,2231.0,2229.6,0.76578617]
[1770212041788,0.00344522,2231.0,2229.8,0.76610496]
[1770212041983,0.00344522,2231.0,2229.9,0.54153496]
[1770212043388,0.00344522,2231.0,2229.9,0.76610496]
[1770212043588,0.00344522,2231.0,2230.0,0.53788723]
[1770212043791,0.22439,2231.7,2230.1,0.53788723]
[1770212043990,5.23047645,2231.9,2230.4,0.53788723]
[1770212043991,0.044,2231.9,2230.4,0.53788723]
[1770212044186,0.22439,2231.7,2230.4,0.53788723]
[1770212044594,0.22442,2231.4,2230.4,0.53788723]
[1770212044792,0.22777437,2231.4,2230.4,0.53788723]
[1770212046288,0.22443,2231.3,2230.4,0.53788723]
[1770212046892,0.00335437,2231.4,2230.4,0.53788723]
[1770212047596,0.22777437,2231.4,2230.4,0.53788723]
[1770212048190,0.22444,2231.2,2230.4,0.53788723]
[1770212050698,39.78572336,2231.4,2230.4,0.53788723]
[1770212051499,0.22444,2231.2,2230.4,0.53788723]
[1770212051794,0.22447,2230.9,2230.0,0.00360715]
[1770212051998,39.78236899,2230.7,2230.0,0.00360715]
[1770212052195,0.22453,2230.3,2229.5,0.52514851]
[1770212052396,0.22453,2230.3,2230.1,4.82e-06]
[1770212052597,0.22453,2230.3,2229.5,0.52514851]
[1770212052791,39.78236899,2230.5,2229.5,0.52514851]
[1770212053099,39.78236899,2230.7,2229.5,0.5296289]
[1770212053298,39.78236899,2230.6,2229.5,0.5296289]
[1770212053501,40.00685899,2230.8,2229.5,0.5296289]
[1770212054392,40.00685899,2230.8,2229.7,0.5237391]
[1770212058406,39.78236899,2230.7,2229.7,0.5237391]
[1770212059404,0.2246,2229.6,2228.8,0.51144293]
[1770212059604,39.78236899,2229.4,2228.5,0.51144293]
[1770212060007,40.00698899,2229.4,2228.5,0.51144293]
[1770212060309,40.26797459,2229.0,2227.4,0.22482]
[1770212060504,40.26797459,2228.9,2227.4,0.22888203]
[1770212060905,0.4856056,2228.9,2227.4,0.22888203]
[1770212061107,39.78708098,2229.0,2227.5,0.2248]
[1770212061310,0.00471199,2229.0,2227.5,0.2248]
[1770212062010,0.00471199,2229.0,2227.7,0.22479]
[1770212062210,0.00471199,2229.0,2227.8,0.47329815]
[1770212062607,0.47112137,2228.9,2227.8,0.47329815]
[1770212062809,0.47112137,2228.9,2227.4,0.00406203]
[1770212062810,0.47112137,2228.9,2227.4,0.47736018]
[1770212063013,0.7093847,2228.7,2227.4,0.47736018]
[1770212063213,0.4846947,2228.6,2227.4,0.47736018]
[1770212063916,0.4846947,2228.6,2227.4,0.00406203]
[1770212064109,0.48486042,2228.3,2227.4,0.00406203]
[1770212064715,0.48079839,2227.9,2226.2,0.48665024]
[1770212064911,0.52479839,2227.8,2226.2,0.48665024]
[1770212065810,0.52479839,2227.8,2226.2,0.49066044]
[1770212066015,0.47222305,2227.7,2226.2,0.49066044]
[1770212066504,0.22479,2227.7,2226.2,0.49066044]
[1770212066705,0.47222305,2227.5,2226.2,0.49066044]
[1770212068020,0.51993372,2227.8,2226.2,0.49066044]
[1770212068311,0.044,2227.8,2226.3,0.48665024]
[1770212068513,0.044,2227.8,2226.8,0.22488]
[1770212068816,0.044,2227.8,2226.9,0.71152024]
[1770212069007,40.8,2228.4,2227.0,0.48665024]
[1770212069206,41.28663268,2228.4,2227.0,0.48665024]
[1770212069411,0.48663268,2228.4,2227.0,0.48665024]
[1770212071023,40.8,2228.6,2227.0,0.71151024]
[1770212071219,0.71132268,2228.7,2227.2,0.48665024]
[1770212071422,0.48663268,2228.4,2227.2,0.48665024]
[1770212071623,41.28663268,2228.4,2227.2,0.48665024]
[1770212072416,0.48663268,2228.4,2227.2,0.48665024]
[1770212073527,0.48663268,2227.9,2226.3,0.48665024]
[1770212073730,0.48663268,2227.9,2226.3,0.53065024]
[1770212074221,0.48663268,2227.8,2226.4,0.48665024]
[1770212075023,0.48663268,2227.7,2226.4,0.48665024]
[1770212076324,0.48663268,2227.3,2226.4,0.48665024]
[1770212076623,0.48981442,2227.3,2226.2,0.49066044]
[1770212078424,0.48663268,2227.2,2226.2,0.49066044]
[1770212079125,0.48663268,2227.2,2225.4,9.39753223]
[1770212079326,1.03743174,2227.3,2224.3,0.35805149]
[1770212079327,1.52133268,2226.3,2224.3,0.35805149]
[1770212079523,0.48663268,2225.3,2223.7,0.22519]
[1770212079824,0.53063268,2225.4,2223.9,0.22517]
[1770212080025,0.48663268,2226.0,2224.4,0.22512]
[1770212080228,0.49067847,2226.0,2224.4,0.00367029]
[1770212080424,0.48663268,2225.8,2224.4,0.00367029]
[1770212081236,0.48663268,2225.8,2224.5,0.48665024]
[1770212081530,0.49067847,2226.0,2224.6,0.48665024]
[1770212085135,0.48663268,2225.9,2224.4,0.49032053]
[1770212085734,0.48663268,2225.8,2224.4,0.49032053]
[1770212085936,0.48663268,2225.6,2224.4,0.00367029]
[1770212086634,0.48663268,2225.6,2224.4,0.49032053]
[1770212086826,0.48663268,2225.6,2224.4,0.00367029]
[1770212087030,0.48663268,2225.0,2223.3,0.48665024]
[1770212087432,0.48663268,2225.0,2223.4,0.48665024]
[1770212087839,0.48663268,2224.7,2223.4,0.48665024]
[1770212088040,0.48663268,2224.7,2223.4,0.49232344]
[1770212088237,0.48663268,2225.0,2223.6,0.48665024]
[1770212088439,0.48663268,2225.0,2223.7,0.48665024]
[1770212088633,0.48663268,2225.4,2224.0,1.03576]
[1770212088837,0.48663268,2225.7,2224.4,0.48665024]
[1770212089139,0.48663268,2225.7,2224.5,0.48665024]
[1770212089735,0.48663268,2225.7,2224.0,1.03576]
[1770212089736,0.48663268,2225.5,2223.8,0.48665024]
[1770212089937,0.48663268,2225.1,2223.9,0.48665024]
[1770212090439,0.48663268,2225.1,2223.7,0.48665024]
[1770212090642,0.48663268,2225.1,2223.8,0.48665024]
[1770212090842,0.48663268,2225.5,2224.1,0.48665024]
[1770212091041,0.48663268,2225.5,2224.3,0.22513]
[1770212091334,0.48663268,2225.9,2224.5,0.48665024]
[1770212091535,0.48663268,2225.8,2224.5,0.48665024]
[1770212092136,0.04804579,2226.0,2224.6,0.2251]
[1770212092338,0.53467847,2226.0,2224.7,0.48665024]
[1770212092941,0.48663268,2225.2,2223.9,0.48665024]
[1770212093239,0.48663268,2225.8,2224.3,0.48665024]
[1770212093435,0.48663268,2225.8,2224.6,0.48665024]
[1770212093640,0.50503951,2226.0,2224.7,0.50140301]
[1770212093941,0.50099372,2227.2,2225.7,0.50140301]
[1770212094135,0.044,2227.8,2226.7,0.50140301]
[1770212094336,0.50099372,2228.6,2227.3,0.50140301]
[1770212094546,0.50099372,2228.9,2227.6,0.50140301]
[1770212094940,0.00518122,2228.9,2227.8,0.50140301]
[1770212095136,39.78236899,2230.3,2228.4,1.03371]
[1770212095336,0.50099372,2231.1,2229.4,1.03326]
[1770212095641,0.50099372,2232.0,2230.3,0.50140301]
[1770212095837,0.50099372,2231.7,2230.4,0.044]
[1770212096036,0.50099372,2231.7,2229.7,0.50140301]
[1770212096240,0.50099372,2231.7,2228.9,0.314]
[1770212096241,0.50099372,2231.1,2230.1,0.00326124]
[1770212096435,0.50099372,2230.9,2229.4,0.044]
[1770212096639,0.50099372,2230.7,2228.9,0.50140301]
[1770212096839,0.50099372,2230.5,2228.9,0.54540301]
[1770212097046,0.50099372,2230.3,2228.9,0.044]
[1770212097241,0.50099372,2230.3,2228.5,0.50140301]
[1770212097541,0.50099372,2230.3,2228.5,0.00357293]
[1770212097542,0.50099372,2229.9,2228.5,0.00357293]
[1770212097847,0.49592428,2229.7,2228.5,0.00357293]
[1770212098243,0.044,2229.8,2228.5,0.46955194]
[1770212098546,0.00520778,2229.9,2228.5,0.46955194]
[1770212098748,0.00520778,2229.9,2228.6,0.044]
[1770212098942,0.044,2230.7,2228.6,0.044]
[1770212098943,0.49592428,2230.6,2228.6,0.044]
[1770212099143,0.49592428,2230.2,2228.3,0.44876254]
[1770212099445,0.49592428,2227.7,2226.1,3.98050616]
[1770212099747,0.49592428,2227.7,2226.0,1.03483]
[1770212099941,0.50059197,2227.7,2226.0,0.00531828]
[1770212100136,0.50059197,2227.7,2226.0,1.04013828]
[1770212100341,0.50059197,2227.7,2226.1,0.044]
[1770212100544,0.00466769,2227.7,2226.4,1.03464]
[1770212100740,0.00466769,2227.7,2226.5,0.46597901]
[1770212101139,0.50059197,2227.7,2226.5,0.46597901]
[1770212101545,0.50059197,2227.7,2226.1,0.46597901]
[1770212102044,0.49592428,2227.3,2225.3,0.46597901]
[1770212102436,0.49592428,2227.3,2225.4,0.46597901]
[1770212102642,0.50059197,2227.7,2225.9,0.46597901]
[1770212102838,0.50059197,2227.7,2226.0,0.46597901]
[1770212103042,0.50059197,2227.7,2226.3,0.46597901]
[1770212103240,0.50059197,2227.7,2226.0,0.00354031]
[1770212103446,1.03461,2226.5,2224.4,0.46597901]
[1770212103751,0.49592428,2226.4,2224.5,0.46597901]
[1770212103946,0.49592428,2226.4,2224.6,0.46597901]
[1770212104345,0.49592428,2226.4,2224.6,0.47046334]
[1770212105644,0.49592428,2226.2,2224.6,0.00448433]
[1770212105847,1.75561428,2226.2,2224.6,0.00448433]
[1770212106048,0.49592428,2226.1,2224.6,0.00448433]
[1770212106242,0.49592428,2225.9,2224.6,0.00448433]
[1770212109246,0.49592428,2225.6,2224.6,0.00448433]
[1770212111643,0.49592428,2225.6,2224.6,0.86190261]
[1770212111844,0.49592428,2225.6,2224.7,0.85741828]
[1770212112042,0.49592428,2225.6,2224.9,0.85741828]
[1770212112242,0.49592428,2226.0,2224.6,0.47046334]
[1770212112452,0.49592428,2226.0,2224.9,0.85741828]
[1770212113751,0.49592428,2226.0,2225.0,0.85741828]
[1770212113954,0.49592428,2226.0,2224.8,0.85741828]
[1770212114355,0.49592428,2226.0,2225.0,0.85741828]
[1770212114953,0.49592428,2226.0,2225.2,0.85741828]
[1770212115154,0.49592428,2226.0,2225.1,0.85741828]
[1770212115350,0.49592428,2225.8,2224.6,0.00448433]
[1770212115659,0.49592428,2225.8,2224.6,1.32788162]
[1770212115948,0.49592428,2225.8,2224.8,0.85741828]
[1770212117054,0.49592428,2225.8,2224.9,0.85741828]
[1770212117254,0.49592428,2225.8,2224.8,0.85741828]
[1770212118054,0.49592428,2225.8,2225.0,0.85741828]
[1770212118255,0.49592428,2225.8,2224.9,0.85741828]
[1770212118654,0.49592428,2225.8,2225.0,0.85741828]
[1770212118855,0.49592428,2225.8,2225.1,0.85741828]
[1770212119155,0.49592428,2225.8,2225.0,0.85741828]
[1770212120159,0.49592428,2225.8,2224.6,0.47046334]
[1770212120358,0.49592428,2225.8,2224.7,0.85741828]
[1770212120559,0.49592428,2225.8,2224.6,0.47046334]
[1770212120859,0.49592428,2225.8,2224.6,1.32788162]
[1770212121058,0.49592428,2225.8,2224.6,0.47046334]
[1770212121353,0.22497,2225.9,2224.9,0.46597901]
[1770212121561,0.22497,2225.9,2225.0,0.85741828]
[1770212121854,0.49592428,2225.8,2224.6,0.47046334]
[1770212122058,0.49592428,2225.8,2224.8,0.85741828]
[1770212122254,0.49592428,2225.7,2224.6,0.00448433]
[1770212122458,0.00360148,2226.1,2224.6,0.00448433]
[1770212122459,0.72092428,2225.6,2224.6,0.00448433]
[1770212122654,0.49592428,2225.5,2224.6,0.00448433]
[1770212123161,0.49592428,2225.5,2224.6,0.86190261]
[1770212123556,0.49592428,2225.8,2224.6,0.47046334]
[1770212123857,0.22856148,2226.1,2224.9,1.35592808]
[1770212123858,0.71896588,2226.1,2224.9,1.35592808]
[1770212124059,0.71896588,2226.1,2225.0,0.4985098]
[1770212124259,0.71896588,2226.1,2225.1,0.85741828]
[1770212124758,0.71896588,2226.1,2225.2,0.85741828]
[1770212124954,0.00360148,2226.1,2225.3,0.4985098]
[1770212125158,0.00360148,2226.1,2225.4,1.35592808]
[1770212125359,0.00360148,2226.1,2225.1,0.4985098]
[1770212125553,0.00360148,2226.1,2225.5,0.85741828]
[1770212125862,0.7153844,2225.8,2224.6,0.00448433]
[1770212126054,0.4904044,2225.7,2224.6,0.00448433]
[1770212126258,0.4904044,2225.7,2224.7,0.85741828]
[1770212126453,0.7153944,2225.7,2224.8,0.85741828]
[1770212126860,0.7153944,2225.7,2224.6,0.50299413]
[1770212126861,0.7153944,2225.7,2224.9,0.85741828]
[1770212127161,0.7153944,2225.7,2224.8,0.85741828]
[1770212127362,0.4904044,2225.5,2224.6,0.00448433]
[1770212127861,0.4904044,2225.5,2224.7,0.85741828]
[1770212128054,0.4904044,2225.4,2224.7,0.85741828]
[1770212128259,0.49465349,2224.9,2223.9,0.4985098]
[1770212128452,0.49465349,2224.9,2222.5,4.99271658]
[1770212128453,0.22513,2224.3,2223.0,0.4985098]
[1770212128653,0.26957349,2224.5,2223.0,0.4985098]
[1770212129054,39.63456945,2224.5,2223.0,0.4985098]
[1770212129254,39.36499596,2224.2,2223.0,0.50325983]
[1770212129455,43.12290585,2224.1,2223.0,0.50325983]
[1770212129654,3.75790989,2224.0,2223.0,0.50325983]
[1770212129860,3.75790989,2223.9,2223.0,0.50325983]
[1770212130059,39.36499596,2224.1,2223.0,0.50325983]
[1770212130262,3.7552008,2224.0,2223.0,0.50325983]
[1770212130464,3.7552008,2223.9,2223.0,0.50325983]
[1770212130659,39.36499596,2224.2,2223.0,0.50325983]
[1770212131064,39.36499596,2224.2,2222.4,0.4985098]
[1770212131065,0.29397816,2223.9,2222.4,0.4985098]
[1770212131267,39.36499596,2223.5,2222.4,0.4985098]
[1770212131562,39.36499596,2224.2,2222.8,0.4985098]
[1770212131761,3.76715069,2224.1,2223.1,0.4985098]
[1770212132065,3.76715069,2224.0,2223.1,0.4985098]
[1770212132365,3.76715069,2223.9,2223.1,0.50046038]
[1770212132556,3.76715069,2223.8,2223.1,0.50046038]
[1770212132760,3.76715069,2223.7,2222.7,0.4985098]
[1770212133064,39.36499596,2223.6,2222.4,0.4985098]
[1770212133264,39.88300116,2223.6,2222.4,0.4985098]
[1770212133458,0.2927952,2222.9,2221.7,0.4985098]
[1770212133764,3.76715069,2222.8,2221.7,0.50226575]
[1770212134064,0.00433239,2222.9,2221.7,0.50226575]
[1770212134264,0.28914394,2222.2,2220.4,0.4985098]
[1770212134459,0.28914394,2222.0,2220.4,0.4985098]
[1770212134765,3.72653886,2221.9,2220.5,1.03738]
[1770212134961,0.28914394,2222.6,2221.0,0.4985098]
[1770212135157,0.28914394,2222.4,2221.0,0.4985098]
[1770212135466,5.25901729,2222.9,2221.0,0.4985098]
[1770212135467,0.28914394,2222.8,2221.3,0.4985098]
[1770212135665,0.00433239,2222.9,2221.3,0.4985098]
[1770212136259,0.29153539,2222.7,2221.3,0.4985098]
[1770212136464,3.71343778,2222.6,2221.3,0.4985098]
[1770212136765,0.29153539,2222.7,2221.3,0.4985098]
[1770212136960,3.71342078,2222.6,2221.3,0.4985098]
[1770212137161,0.00433239,2222.9,2221.3,0.4985098]
[1770212137461,0.29586778,2222.9,2221.3,0.4985098]
[1770212137668,0.00433239,2222.9,2221.3,0.4985098]
[1770212138662,0.28655997,2222.1,2221.0,0.49985342]
[1770212138966,0.28655997,2221.9,2220.7,0.4985098]
[1770212139464,0.045,2222.2,2220.7,0.4985098]
[1770212139768,0.33155997,2222.2,2220.7,0.4985098]
[1770212140167,0.045,2222.2,2220.7,0.4985098]
[1770212140565,0.045,2222.2,2220.9,0.4985098]
[1770212140768,0.045,2222.2,2220.8,0.045]
[1770212140769,0.00433239,2222.9,2221.5,0.4985098]
[1770212143464,0.00433239,2222.9,2221.8,0.4985098]
[1770212143969,0.00433239,2222.9,2221.9,0.4985098]
[1770212144170,0.00433239,2222.9,2221.9,0.7238898]
[1770212144367,0.2252,2223.7,2222.1,0.4985098]
[1770212144562,41.0252,2223.7,2222.1,0.4985098]
[1770212144763,0.31529372,2223.5,2222.1,0.4985098]
[1770212145362,0.31529372,2223.4,2222.1,0.4985098]
[1770212145567,0.31529372,2223.3,2222.1,0.4985098]
[1770212145763,0.00424338,2223.5,2221.9,0.00413419]
[1770212145764,0.31529372,2223.0,2221.9,0.00413419]
[1770212146069,0.31529372,2223.0,2221.9,0.50264399]
[1770212146464,0.31636362,2223.3,2221.9,0.50264399]
[1770212146670,0.31636362,2223.2,2221.9,0.50264399]
[1770212146871,0.31636362,2223.0,2221.9,0.50264399]
[1770212147063,0.31636362,2222.9,2221.9,0.00413419]
[1770212147667,0.54164362,2222.9,2221.9,0.00413419]
[1770212147969,0.31636362,2222.8,2221.9,0.00413419]
[1770212148167,0.22531,2222.6,2221.3,0.4985098]
[1770212148369,0.31544065,2222.4,2221.3,0.4985098]
[1770212148670,0.31544065,2222.2,2220.6,0.4985098]
[1770212149066,0.31544065,2222.1,2220.6,0.4985098]
[1770212149266,0.31544065,2221.9,2220.6,0.4985098]
[1770212149466,0.31544065,2221.4,2220.3,0.4985098]
[1770212150274,0.31425607,2221.2,2220.2,0.22196456]
[1770212150473,0.31425607,2221.2,2220.2,0.72047436]
[1770212150669,0.31425607,2221.2,2220.2,0.22196456]
[1770212150972,0.31780151,2220.7,2219.6,0.4985098]
[1770212151170,2.07462,2220.7,2219.0,0.51072203]
[1770212151466,41.02546,2221.1,2219.2,0.73637203]
[1770212151671,40.8,2221.1,2219.6,0.51072203]
[1770212151865,0.22539,2221.8,2219.6,0.51072203]
[1770212152064,0.27039,2221.8,2219.8,0.51100511]
[1770212152272,0.045,2221.8,2220.4,0.73653511]
[1770212152572,0.045,2221.8,2220.5,0.51100511]
[1770212153073,0.045,2221.8,2220.6,0.51100511]
[1770212153264,0.04443384,2223.2,2221.4,0.4985098]
[1770212153573,0.045,2223.3,2221.5,0.7239298]
[1770212153769,0.045,2223.3,2221.6,0.49612997]
[1770212154274,0.04894105,2223.3,2221.6,0.54456511]
[1770212154975,39.59014596,2224.2,2222.3,0.49612997]
[1770212155175,3.70769745,2224.1,2222.5,0.49612997]
[1770212155368,0.22515,2224.2,2222.5,0.49612997]
[1770212155369,40.8,2224.2,2222.5,0.49612997]
[1770212155568,3.67039341,2224.0,2222.5,0.49612997]
[1770212155769,3.73705863,2223.9,2222.5,0.49612997]
[1770212155971,0.03311963,2223.9,2222.5,0.49612997]
[1770212156168,0.00352291,2223.9,2222.5,0.49612997]
[1770212156371,3.71172359,2223.8,2222.5,0.49612997]
[1770212156575,0.0333717,2223.9,2222.5,0.49612997]
[1770212156778,0.02984879,2223.7,2222.5,0.49612997]
[1770212157076,3.71036793,2223.6,2222.5,0.49612997]
[1770212157277,3.71036793,2223.5,2222.5,0.49612997]
[1770212157576,0.25504879,2223.7,2222.5,0.49612997]
[1770212157776,0.02860931,2223.5,2221.8,0.49641459]
[1770212158075,3.71603731,2223.4,2221.8,0.49641459]
[1770212158270,3.71603731,2223.3,2221.8,0.49641459]
[1770212158468,0.22521,2223.6,2221.8,0.49641459]
[1770212158668,3.72173016,2223.5,2221.8,0.49641459]
[1770212158873,3.72173016,2223.4,2221.8,0.49641459]
[1770212159075,3.72173016,2223.3,2221.8,0.49641459]
[1770212159371,3.72173016,2223.2,2221.8,0.49641459]
[1770212159575,39.36499596,2223.6,2221.8,0.72179459]
[1770212159773,3.72287968,2223.5,2221.9,0.49641459]
[1770212159969,3.72287968,2223.4,2221.9,0.49641459]
[1770212160172,39.43605305,2223.8,2222.0,0.49769069]
[1770212160374,0.02605709,2223.7,2222.0,0.49769069]
[1770212160677,39.39105305,2223.6,2222.0,0.49769069]
[1770212160875,43.11525275,2223.6,2222.0,0.49769069]
[1770212161076,3.7241997,2223.5,2222.1,0.49769069]
[1770212161279,0.00352291,2223.9,2222.7,0.49769069]
[1770212161780,0.00352291,2223.9,2222.7,0.54269069]
[1770212162078,39.36499596,2224.3,2222.7,0.54269069]
[1770212162079,39.36499596,2224.3,2223.1,0.49721197]
[1770212162379,0.45,2224.4,2223.3,0.49545052]
[1770212162580,0.45,2224.4,2223.5,0.22521]
[1770212162775,39.36499596,2225.2,2223.6,0.49545052]
[1770212162970,43.07660131,2225.2,2223.6,0.49545052]
[1770212163280,3.9672028,2225.1,2223.6,0.49874186]
[1770212163580,3.71160535,2225.0,2223.6,0.49874186]
[1770212163775,3.71160535,2224.9,2223.6,0.49874186]
[1770212163975,0.22507,2225.0,2223.6,0.49874186]
[1770212164175,0.2251,2224.7,2223.6,0.49874186]
[1770212164372,3.70697301,2224.6,2223.6,0.49874186]
[1770212164570,3.92872402,2224.5,2223.2,0.49658944]
[1770212164773,0.22512,2224.5,2223.2,0.49658944]
[1770212165677,0.22512,2224.5,2223.2,0.50093163]
[1770212166376,39.36499596,2224.9,2223.2,0.50093163]
[1770212166575,3.70043616,2224.8,2223.2,0.50093163]
[1770212166870,3.70043616,2224.7,2223.2,0.50093163]
[1770212167472,39.44841227,2225.2,2223.6,0.49324126]
[1770212167673,39.36499596,2225.7,2224.6,0.49324126]
[1770212167976,0.22493,2226.3,2224.7,0.49324126]
[1770212168374,0.22495,2226.2,2224.7,0.49324126]
[1770212168781,0.22933761,2226.2,2224.7,0.49324126]
[1770212169176,0.00438761,2226.2,2224.7,0.49324126]
[1770212169679,0.03326887,2225.6,2224.1,0.49408481]
[1770212169974,0.07826887,2225.9,2224.2,0.50051487]
[1770212170172,0.045,2225.9,2224.3,0.72564487]
[1770212170371,0.045,2225.9,2224.4,0.50051487]
[1770212170772,0.29037875,2225.9,2224.4,0.50051487]
[1770212170976,0.045,2225.9,2224.4,0.72563487]
[1770212171177,0.00438761,2226.2,2224.7,0.50051487]
[1770212174077,0.02254687,2226.2,2224.7,0.50051487]
[1770212174482,0.24313926,2225.9,2224.7,0.50051487]
[1770212174880,0.22499,2225.7,2224.7,0.50051487]
[1770212175082,0.01815926,2225.6,2224.3,0.50163961]
[1770212175281,0.22503,2225.3,2224.3,0.50163961]
[1770212175676,1.05328926,2225.4,2224.3,0.50163961]
[1770212175883,1.05328926,2225.4,2223.2,0.22958219]
[1770212175884,0.2251,2224.7,2223.6,0.50163961]
[1770212176376,0.01970208,2224.6,2223.2,0.00434219]
[1770212176576,0.01970208,2224.6,2222.3,0.44997413]
[1770212176577,0.22519,2223.8,2222.6,0.5008682]
[1770212176776,0.46366369,2223.4,2222.3,0.44997413]
[1770212176976,0.68891369,2223.2,2221.7,0.8534]
[1770212177577,0.46366369,2223.5,2221.7,0.858433]
[1770212177776,0.46366369,2223.4,2221.7,0.858433]
[1770212177978,0.46366369,2223.1,2221.7,0.858433]
[1770212178177,1.03608,2223.4,2221.7,0.858433]
[1770212178178,0.22528,2222.9,2221.7,0.858433]
[1770212178486,0.69313353,2222.9,2221.7,0.858433]
[1770212178882,0.69313353,2222.9,2221.7,1.33857403]
[1770212179282,0.46366369,2222.8,2221.7,1.33857403]
[1770212179479,0.46366369,2222.8,2221.7,0.858433]
[1770212179887,0.22946984,2222.9,2221.8,0.48014103]
[1770212180387,0.00418984,2222.9,2221.8,0.48014103]
[1770212183483,0.22529,2222.8,2221.8,0.48014103]
[1770212183684,0.72433115,2222.8,2221.7,0.858433]
[1770212183986,40.8,2222.7,2221.7,0.858433]
[1770212184387,40.8,2222.7,2221.7,0.46797821]
[1770212184581,0.72433115,2222.8,2221.7,0.46797821]
[1770212184785,0.22529,2222.8,2221.7,0.46797821]
[1770212185491,0.22529,2222.8,2221.8,1.36304521]
[1770212186090,0.50323099,2222.9,2221.8,0.9001]
[1770212186291,0.22536,2222.1,2221.1,0.46294521]
[1770212186695,0.22538,2221.9,2220.2,0.46294521]
[1770212186893,0.22533,2222.4,2220.5,0.46294521]
[1770212187093,0.22533,2222.4,2220.6,0.46294521]
[1770212187295,0.22536,2222.1,2220.7,0.46294521]
[1770212187793,0.22537,2222.0,2220.7,0.46294521]
[1770212187992,0.22537,2222.0,2220.9,0.46294521]
[1770212188195,0.22539,2221.8,2220.9,0.46294521]
[1770212189294,0.22539,2221.8,2220.8,0.7981]
[1770212189489,0.22539,2221.8,2220.9,0.46294521]
[1770212190492,0.2254,2221.7,2220.9,0.46294521]
[1770212190892,0.16570509,2221.9,2220.8,0.7981]
[1770212191093,0.22543,2221.4,2220.6,0.0044086]
[1770212191287,0.22543,2221.4,2220.6,0.46735381]
[1770212192396,0.27038,2221.9,2220.6,0.46735381]
[1770212192599,0.045,2221.9,2220.6,0.46735381]
[1770212192898,0.2254,2221.7,2220.6,0.46735381]
[1770212194798,0.22536,2222.1,2220.8,0.46294521]
[1770212195096,0.27446984,2222.9,2221.3,0.46294521]
[1770212195696,0.04918984,2222.9,2221.7,0.46294521]
[1770212197996,0.00418984,2222.9,2221.7,0.46294521]
[1770212198196,0.2252,2223.7,2222.2,0.46294521]
[1770212198397,0.22521,2223.6,2222.2,0.46294521]
[1770212198700,0.21895826,2223.7,2222.2,0.46294521]
[1770212198701,0.22524,2223.3,2222.2,0.46294521]
[1770212199103,0.2308626,2223.3,2222.2,0.46758722]
[1770212202904,0.0056226,2223.3,2222.2,0.46758722]
[1770212204204,0.045,2223.8,2222.6,0.46294521]
[1770212204898,39.32646727,2223.8,2222.6,0.46294521]
[1770212205100,0.21983564,2223.7,2222.6,0.46294521]
[1770212205300,39.56067278,2223.4,2222.3,0.045]
[1770212206001,39.78590278,2223.4,2222.3,0.045]
[1770212206200,39.06163163,2223.3,2222.3,0.045]
[1770212207195,39.06163163,2223.3,2222.3,0.50794521]